[Event "*** Titled Tuesday Blitz"]
[Site "Chess.com"]
[Date "2020.03.03"]
[Round "2"]
[White "black_pawn_16"]
[Black "FedaMaster"]
[Result "0-1"]
[WhiteElo "2169"]
[BlackElo "2436"]
[TimeControl "180+1"]
[EndTime "13:20:56 PST"]
[Termination "FedaMaster won on time"]

1. e4 {[%clk 0:03:00.9]} 1... c5 {[%clk 0:02:58.6]} 2. Nc3 {[%clk 0:03:00.6]}
2... a6 {[%clk 0:02:57.7]} 3. f4 {[%clk 0:03:00.1]} 3... g6 {[%clk 0:02:57.3]}
4. g3 {[%clk 0:02:59.8]} 4... Bg7 {[%clk 0:02:57.8]} 5. Bg2 {[%clk 0:03:00.1]}
5... e6 {[%clk 0:02:56.9]} 6. d3 {[%clk 0:03:00.3]} 6... Ne7 {[%clk 0:02:55.9]}
7. Nf3 {[%clk 0:03:00.7]} 7... Nbc6 {[%clk 0:02:56]} 8. Qe2 {[%clk 0:03:00.2]}
8... d5 {[%clk 0:02:54]} 9. O-O {[%clk 0:02:59]} 9... b5 {[%clk 0:02:46.7]} 10.
Nd1 {[%clk 0:02:53.6]} 10... dxe4 {[%clk 0:02:39.6]} 11. dxe4 {[%clk 0:02:54.5]}
11... Bb7 {[%clk 0:02:21.1]} 12. c3 {[%clk 0:02:53.3]} 12... Qd7 {[%clk
0:02:17.9]} 13. Nf2 {[%clk 0:02:52.7]} 13... O-O {[%clk 0:01:57.8]} 14. Be3
{[%clk 0:02:52]} 14... c4 {[%clk 0:01:58.2]} 15. Bc5 {[%clk 0:02:45]} 15... Rfd8
{[%clk 0:01:57.4]} 16. Bb6 {[%clk 0:02:39.5]} 16... Rdc8 {[%clk 0:01:50.9]} 17.
Rad1 {[%clk 0:02:37.7]} 17... Qe8 {[%clk 0:01:50.8]} 18. Kh1 {[%clk 0:02:16.9]}
18... a5 {[%clk 0:01:47.2]} 19. e5 {[%clk 0:01:52.4]} 19... Ra6 {[%clk
0:01:45.7]} 20. Be3 {[%clk 0:01:51]} 20... Nd5 {[%clk 0:01:45.5]} 21. Ne4 {[%clk
0:01:43.4]} 21... Rb8 {[%clk 0:01:13.5]} 22. Nd6 {[%clk 0:01:37.3]} 22... Qd7
{[%clk 0:01:10.8]} 23. Ng5 {[%clk 0:01:26.2]} 23... Nce7 {[%clk 0:01:10]} 24.
Nge4 {[%clk 0:01:21]} 24... Nxe3 {[%clk 0:01:05.4]} 25. Qxe3 {[%clk 0:01:21.9]}
25... Nd5 {[%clk 0:01:04]} 26. Qf2 {[%clk 0:01:19.3]} 26... Ba8 {[%clk
0:01:02.5]} 27. Nc5 {[%clk 0:01:18.7]} 27... Qc6 {[%clk 0:01:00.9]} 28. Nxa6
{[%clk 0:01:11.1]} 28... Qxa6 {[%clk 0:01:01.8]} 29. Rfe1 {[%clk 0:01:03.5]}
29... h5 {[%clk 0:00:56]} 30. Ne4 {[%clk 0:01:01.1]} 30... b4 {[%clk 0:00:54.1]}
31. h4 {[%clk 0:00:45]} 31... a4 {[%clk 0:00:43.5]} 32. Kh2 {[%clk 0:00:34.7]}
32... a3 {[%clk 0:00:42.4]} 33. cxb4 {[%clk 0:00:29.9]} 33... Rxb4 {[%clk
0:00:38.3]} 34. bxa3 {[%clk 0:00:29.6]} 34... Qxa3 {[%clk 0:00:39.2]} 35. Rb1
{[%clk 0:00:27.3]} 35... c3 {[%clk 0:00:39]} 36. Rxb4 {[%clk 0:00:21.4]} 36...
Qxb4 {[%clk 0:00:39.9]} 37. Qc2 {[%clk 0:00:19.1]} 37... Qd4 {[%clk 0:00:31]}
38. Nxc3 {[%clk 0:00:11.1]} 38... Qc5 {[%clk 0:00:14]} 39. Bxd5 {[%clk
0:00:05.5]} 39... exd5 {[%clk 0:00:12.3]} 40. Rc1 {[%clk 0:00:05]} 40... d4
{[%clk 0:00:12.1]} 41. Ne2 {[%clk 0:00:05]} 41... Qd5 {[%clk 0:00:12.2]} 42.
Qc8+ {[%clk 0:00:04.5]} 42... Kh7 {[%clk 0:00:12.6]} 43. Rg1 {[%clk 0:00:04.2]}
43... Qf3 {[%clk 0:00:12.3]} 44. Nxd4 {[%clk 0:00:03.9]} 44... Qf2+ {[%clk
0:00:12.4]} 45. Kh3 {[%clk 0:00:04.1]} 45... Qxg1 {[%clk 0:00:13]} 46. Qxa8
{[%clk 0:00:03.4]} 46... Qxd4 {[%clk 0:00:13.5]} 47. a4 {[%clk 0:00:03.4]} 47...
Qd7+ {[%clk 0:00:13.2]} 48. Kh2 {[%clk 0:00:02.4]} 48... Qd2+ {[%clk 0:00:13.6]}
49. Kh3 {[%clk 0:00:02.1]} 49... Qd1 {[%clk 0:00:12.9]} 50. a5 {[%clk
0:00:01.7]} 50... Bf8 {[%clk 0:00:12.3]} 0-1

[Event "*** Titled Tuesday Blitz"]
[Site "Chess.com"]
[Date "2020.03.03"]
[Round "2"]
[White "Sunnika"]
[Black "j2806"]
[Result "1-0"]
[WhiteElo "2384"]
[BlackElo "1973"]
[TimeControl "180+1"]
[EndTime "13:20:56 PST"]
[Termination "Sunnika won by checkmate"]

1. d4 {[%clk 0:03:00.9]} 1... Nf6 {[%clk 0:02:59.1]} 2. c4 {[%clk 0:03:00.1]}
2... e6 {[%clk 0:02:58.8]} 3. g3 {[%clk 0:03:00.5]} 3... d5 {[%clk 0:02:55.8]}
4. Nf3 {[%clk 0:03:00.7]} 4... Be7 {[%clk 0:02:55.4]} 5. Bg2 {[%clk 0:03:01.1]}
5... O-O {[%clk 0:02:55.3]} 6. O-O {[%clk 0:03:01.7]} 6... dxc4 {[%clk
0:02:55.3]} 7. Qc2 {[%clk 0:03:02.1]} 7... a6 {[%clk 0:02:54.9]} 8. a4 {[%clk
0:03:00.9]} 8... Nbd7 {[%clk 0:02:53.4]} 9. Nbd2 {[%clk 0:02:48.8]} 9... c5
{[%clk 0:02:46.1]} 10. dxc5 {[%clk 0:02:46.3]} 10... Nxc5 {[%clk 0:02:44.9]} 11.
Nxc4 {[%clk 0:02:46.8]} 11... Rb8 {[%clk 0:02:35.4]} 12. Rd1 {[%clk 0:02:47]}
12... Qe8 {[%clk 0:02:29.9]} 13. Bf4 {[%clk 0:02:40.2]} 13... Ra8 {[%clk
0:02:27.9]} 14. Nd6 {[%clk 0:02:40.7]} 14... Qc6 {[%clk 0:02:23.8]} 15. Ne5
{[%clk 0:01:43.1]} 15... Qb6 {[%clk 0:02:14.9]} 16. Nec4 {[%clk 0:01:33.8]}
16... Qb3 {[%clk 0:01:54.9]} 17. Qc1 {[%clk 0:01:22.4]} 17... Nxa4 {[%clk
0:01:41.2]} 18. Rd3 {[%clk 0:00:57.1]} 18... Qb4 {[%clk 0:01:35.3]} 19. Rxa4
{[%clk 0:00:37.2]} 19... Qxa4 {[%clk 0:01:29.2]} 20. Nb6 {[%clk 0:00:37.7]}
20... Qb4 {[%clk 0:01:16.5]} 21. Ndxc8 {[%clk 0:00:33.1]} 21... Raxc8 {[%clk
0:01:01.9]} 22. Nxc8 {[%clk 0:00:32.4]} 22... Bc5 {[%clk 0:00:51.5]} 23. Nd6
{[%clk 0:00:19.2]} 23... Nd5 {[%clk 0:00:43.2]} 24. Bxd5 {[%clk 0:00:18.2]}
24... exd5 {[%clk 0:00:37.1]} 25. Nf5 {[%clk 0:00:16.9]} 25... Qb6 {[%clk
0:00:31]} 26. Be3 {[%clk 0:00:15.6]} 26... Bxe3 {[%clk 0:00:23.2]} 27. Nxe3
{[%clk 0:00:16.5]} 27... Rd8 {[%clk 0:00:20.7]} 28. Nxd5 {[%clk 0:00:15.7]}
28... Qe6 {[%clk 0:00:18.8]} 29. Qd2 {[%clk 0:00:13.8]} 29... Kh8 {[%clk
0:00:15.6]} 30. Nf4 {[%clk 0:00:13]} 30... Rxd3 {[%clk 0:00:13.8]} 31. Qxd3
{[%clk 0:00:13.9]} 31... Qe8 {[%clk 0:00:13.8]} 32. f3 {[%clk 0:00:12.4]} 32...
h6 {[%clk 0:00:12.6]} 33. h4 {[%clk 0:00:11.8]} 33... Qc6 {[%clk 0:00:11.4]} 34.
Kg2 {[%clk 0:00:10.4]} 34... Qc1 {[%clk 0:00:10.9]} 35. b3 {[%clk 0:00:09.3]}
35... Qc6 {[%clk 0:00:10.4]} 36. Qd8+ {[%clk 0:00:08.6]} 36... Kh7 {[%clk
0:00:10.1]} 37. Qd5 {[%clk 0:00:08.4]} 37... Qf6 {[%clk 0:00:09.7]} 38. h5
{[%clk 0:00:07.3]} 38... Qe7 {[%clk 0:00:08.8]} 39. Qe4+ {[%clk 0:00:06.7]}
39... Qxe4 {[%clk 0:00:08.2]} 40. fxe4 {[%clk 0:00:07.6]} 40... Kg8 {[%clk
0:00:08.6]} 41. Kf3 {[%clk 0:00:07]} 41... Kf8 {[%clk 0:00:08.8]} 42. Ke3 {[%clk
0:00:07.6]} 42... Ke7 {[%clk 0:00:09]} 43. Kd4 {[%clk 0:00:08.1]} 43... Kd6
{[%clk 0:00:09.6]} 44. e5+ {[%clk 0:00:08.3]} 44... Kd7 {[%clk 0:00:08.9]} 45.
Kd5 {[%clk 0:00:06.9]} 45... Ke7 {[%clk 0:00:08.5]} 46. e6 {[%clk 0:00:06.6]}
46... fxe6+ {[%clk 0:00:07.9]} 47. Ke5 {[%clk 0:00:06]} 47... Kf7 {[%clk
0:00:07.6]} 48. Nxe6 {[%clk 0:00:06]} 48... b5 {[%clk 0:00:06.8]} 49. Nc7 {[%clk
0:00:05.7]} 49... a5 {[%clk 0:00:06.9]} 50. Nxb5 {[%clk 0:00:05.7]} 50... Ke7
{[%clk 0:00:06.8]} 51. Nd6 {[%clk 0:00:06.2]} 51... Kf8 {[%clk 0:00:06.8]} 52.
Nf5 {[%clk 0:00:06.6]} 52... Kf7 {[%clk 0:00:06.6]} 53. e4 {[%clk 0:00:06.7]}
53... Kf8 {[%clk 0:00:05.9]} 54. Ke6 {[%clk 0:00:07.2]} 54... Kg8 {[%clk
0:00:06]} 55. Ke7 {[%clk 0:00:07.5]} 55... Kh7 {[%clk 0:00:06.5]} 56. Kf7 {[%clk
0:00:07.4]} 56... Kh8 {[%clk 0:00:07.4]} 57. Nxg7 {[%clk 0:00:07]} 57... Kh7
{[%clk 0:00:08.2]} 58. Ne6 {[%clk 0:00:07.5]} 58... Kh8 {[%clk 0:00:08.1]} 59.
Nc5 {[%clk 0:00:08]} 59... Kh7 {[%clk 0:00:08.2]} 60. e5 {[%clk 0:00:08.6]}
60... Kh8 {[%clk 0:00:08.4]} 61. e6 {[%clk 0:00:09.2]} 61... Kh7 {[%clk
0:00:09.3]} 62. e7 {[%clk 0:00:09.7]} 62... Kh8 {[%clk 0:00:10.2]} 63. e8=Q+
{[%clk 0:00:10.3]} 63... Kh7 {[%clk 0:00:11.1]} 64. Qg8# {[%clk 0:00:10.9]} 1-0

[Event "*** Titled Tuesday Blitz"]
[Site "Chess.com"]
[Date "2020.03.03"]
[Round "2"]
[White "Incognito_Knight"]
[Black "GMWSO"]
[Result "1/2-1/2"]
[WhiteElo "2667"]
[BlackElo "3108"]
[TimeControl "180+1"]
[EndTime "13:20:57 PST"]
[Termination "Game drawn by repetition"]

1. e4 {[%clk 0:02:59.7]} 1... c5 {[%clk 0:02:57.8]} 2. Nf3 {[%clk 0:02:59.7]}
2... d6 {[%clk 0:02:58.2]} 3. d4 {[%clk 0:02:59.9]} 3... cxd4 {[%clk 0:02:59.1]}
4. Nxd4 {[%clk 0:03:00.8]} 4... Nf6 {[%clk 0:02:59.5]} 5. f3 {[%clk 0:03:01.5]}
5... e5 {[%clk 0:02:56.5]} 6. Nb3 {[%clk 0:03:01.6]} 6... Be6 {[%clk 0:02:54.3]}
7. c4 {[%clk 0:03:01.7]} 7... Nbd7 {[%clk 0:02:54.3]} 8. Be3 {[%clk 0:03:01.2]}
8... Rc8 {[%clk 0:02:54.3]} 9. Na3 {[%clk 0:03:01.2]} 9... a6 {[%clk 0:02:34.1]}
10. Be2 {[%clk 0:03:00.7]} 10... Be7 {[%clk 0:02:33]} 11. O-O {[%clk 0:03:00.6]}
11... O-O {[%clk 0:02:29.3]} 12. Qd2 {[%clk 0:02:57.6]} 12... Qc7 {[%clk
0:02:28.5]} 13. Rfd1 {[%clk 0:02:56.3]} 13... Qb8 {[%clk 0:02:19.9]} 14. Rac1
{[%clk 0:02:54.5]} 14... Rfd8 {[%clk 0:02:17.6]} 15. Kh1 {[%clk 0:02:52.2]}
15... h6 {[%clk 0:02:12.5]} 16. Bf1 {[%clk 0:02:48.8]} 16... Rc7 {[%clk
0:01:58.1]} 17. Na1 {[%clk 0:02:43.5]} 17... Rdc8 {[%clk 0:01:55.9]} 18. N1c2
{[%clk 0:02:41.8]} 18... b5 {[%clk 0:01:49.5]} 19. Nb4 {[%clk 0:02:34.8]} 19...
Qa8 {[%clk 0:01:31.8]} 20. cxb5 {[%clk 0:02:29.2]} 20... Rxc1 {[%clk 0:01:29.5]}
21. Rxc1 {[%clk 0:02:29.3]} 21... Rxc1 {[%clk 0:01:28.1]} 22. Qxc1 {[%clk
0:02:30.2]} 22... axb5 {[%clk 0:01:27.9]} 23. Bxb5 {[%clk 0:01:56.1]} 23... Nc5
{[%clk 0:01:24.8]} 24. Bc4 {[%clk 0:01:37.1]} 24... Qb7 {[%clk 0:01:15.8]} 25.
Bxc5 {[%clk 0:01:20.3]} 25... dxc5 {[%clk 0:01:15.4]} 26. Nd3 {[%clk 0:01:20.4]}
26... Bxc4 {[%clk 0:00:58.8]} 27. Nxc4 {[%clk 0:01:19.9]} 27... Qa6 {[%clk
0:00:58.8]} 28. a3 {[%clk 0:01:12.1]} 28... Nd7 {[%clk 0:00:54.4]} 29. Ndxe5
{[%clk 0:01:03.2]} 29... Nxe5 {[%clk 0:00:51.3]} 30. Nxe5 {[%clk 0:01:04.1]}
30... Bf6 {[%clk 0:00:48.1]} 31. Qc4 {[%clk 0:00:57.2]} 31... Qb7 {[%clk
0:00:46.5]} 32. Nd3 {[%clk 0:00:54.4]} 32... Bxb2 {[%clk 0:00:45.7]} 33. Nxc5
{[%clk 0:00:41.3]} 33... Qc6 {[%clk 0:00:32.2]} 34. Qd5 {[%clk 0:00:35.8]} 34...
Qxd5 {[%clk 0:00:26.3]} 35. exd5 {[%clk 0:00:36.7]} 35... Bxa3 {[%clk
0:00:27.2]} 36. Nd3 {[%clk 0:00:19.1]} 36... f6 {[%clk 0:00:16.5]} 37. g4 {[%clk
0:00:15.8]} 37... Kf7 {[%clk 0:00:17]} 38. Kg2 {[%clk 0:00:15.2]} 38... Ke7
{[%clk 0:00:17.3]} 39. Nf4 {[%clk 0:00:08.5]} 39... g5 {[%clk 0:00:13.9]} 40.
Nh5 {[%clk 0:00:07.3]} 40... Bb2 {[%clk 0:00:13.2]} 41. Ng3 {[%clk 0:00:07.2]}
41... Kd6 {[%clk 0:00:12.8]} 42. Nf5+ {[%clk 0:00:07.4]} 42... Kxd5 {[%clk
0:00:13.2]} 43. Nxh6 {[%clk 0:00:07.9]} 43... Be5 {[%clk 0:00:13.6]} 44. Nf5
{[%clk 0:00:07.6]} 44... Ke6 {[%clk 0:00:13.5]} 45. h4 {[%clk 0:00:06.9]} 45...
gxh4 {[%clk 0:00:14.4]} 46. Nxh4 {[%clk 0:00:07.8]} 46... Kd5 {[%clk 0:00:11.1]}
47. Nf5 {[%clk 0:00:07.7]} 47... Bf4 {[%clk 0:00:10.3]} 48. Ng3 {[%clk
0:00:06.9]} 48... Be5 {[%clk 0:00:05]} 49. Nf5 {[%clk 0:00:07]} 49... Kc4 {[%clk
0:00:04.9]} 50. Kf2 {[%clk 0:00:07.4]} 50... Kd3 {[%clk 0:00:05.3]} 51. Kg2
{[%clk 0:00:07.5]} 51... Ke2 {[%clk 0:00:04.9]} 52. Ng3+ {[%clk 0:00:07.3]}
52... Ke3 {[%clk 0:00:04.1]} 53. Nh5 {[%clk 0:00:07.6]} 53... Bd4 {[%clk
0:00:04]} 54. Ng3 {[%clk 0:00:07.6]} 54... Be5 {[%clk 0:00:03.2]} 55. Nf5+
{[%clk 0:00:07.9]} 55... Kf4 {[%clk 0:00:03.2]} 56. Ng3 {[%clk 0:00:08.2]} 56...
Ke3 {[%clk 0:00:03.3]} 1/2-1/2

[Event "*** Titled Tuesday Blitz"]
[Site "Chess.com"]
[Date "2020.03.03"]
[Round "2"]
[White "Barcelona_Guy"]
[Black "Tjktiger"]
[Result "0-1"]
[WhiteElo "2582"]
[BlackElo "2813"]
[TimeControl "180+1"]
[EndTime "13:21:00 PST"]
[Termination "Tjktiger won by resignation"]

1. e4 {[%clk 0:03:00.9]} 1... c5 {[%clk 0:02:59.4]} 2. Nf3 {[%clk 0:03:00.9]}
2... g6 {[%clk 0:02:59.1]} 3. c4 {[%clk 0:02:59]} 3... Bg7 {[%clk 0:02:58.8]} 4.
d4 {[%clk 0:02:59.6]} 4... cxd4 {[%clk 0:02:59.7]} 5. Nxd4 {[%clk 0:03:00.5]}
5... Nc6 {[%clk 0:03:00.1]} 6. Be3 {[%clk 0:02:59.5]} 6... Qb6 {[%clk
0:03:00.6]} 7. Nb5 {[%clk 0:02:55.9]} 7... Qa5+ {[%clk 0:03:00.3]} 8. N1c3
{[%clk 0:02:53.3]} 8... Nf6 {[%clk 0:02:59.1]} 9. Qd2 {[%clk 0:02:39.9]} 9...
O-O {[%clk 0:02:56.6]} 10. Be2 {[%clk 0:02:39.4]} 10... d6 {[%clk 0:02:55.6]}
11. O-O {[%clk 0:02:36.1]} 11... a6 {[%clk 0:02:55.8]} 12. Nd4 {[%clk
0:02:25.4]} 12... Nxd4 {[%clk 0:02:55.2]} 13. Qxd4 {[%clk 0:02:16]} 13... Ng4
{[%clk 0:02:52.6]} 14. Qb6 {[%clk 0:02:03.7]} 14... Bxc3 {[%clk 0:01:50.4]} 15.
bxc3 {[%clk 0:02:02]} 15... Qxb6 {[%clk 0:01:51.3]} 16. Bxb6 {[%clk 0:02:01.9]}
16... Ne5 {[%clk 0:01:52.2]} 17. Be3 {[%clk 0:01:46.8]} 17... Be6 {[%clk
0:01:44.4]} 18. c5 {[%clk 0:01:47.2]} 18... dxc5 {[%clk 0:01:41.6]} 19. Bxc5
{[%clk 0:01:47]} 19... Rfe8 {[%clk 0:01:42.1]} 20. Bd4 {[%clk 0:01:44]} 20...
Bc4 {[%clk 0:01:29.6]} 21. Bxe5 {[%clk 0:01:26.2]} 21... Bxe2 {[%clk 0:01:29.3]}
22. Rfe1 {[%clk 0:01:26.7]} 22... Bc4 {[%clk 0:01:29.1]} 23. a4 {[%clk
0:01:24.9]} 23... f6 {[%clk 0:01:28.7]} 24. Bc7 {[%clk 0:01:20.5]} 24... Rec8
{[%clk 0:01:26]} 25. Bb6 {[%clk 0:01:14.8]} 25... Bf7 {[%clk 0:01:16]} 26. Re3
{[%clk 0:01:02.5]} 26... Rc6 {[%clk 0:01:10.8]} 27. a5 {[%clk 0:01:01.2]} 27...
Rac8 {[%clk 0:01:11.1]} 28. Ra3 {[%clk 0:01:01.3]} 28... Rd6 {[%clk 0:01:10.2]}
29. h4 {[%clk 0:00:57.7]} 29... Rd1+ {[%clk 0:01:07.8]} 30. Kh2 {[%clk
0:00:57.8]} 30... e5 {[%clk 0:00:57.4]} 31. Ra4 {[%clk 0:00:34.6]} 31... Be8
{[%clk 0:00:55.9]} 32. Rb4 {[%clk 0:00:32.1]} 32... Bc6 {[%clk 0:00:54.8]} 33.
c4 {[%clk 0:00:28.6]} 33... Kf7 {[%clk 0:00:49.8]} 34. c5 {[%clk 0:00:28.8]}
34... Ke6 {[%clk 0:00:49.4]} 35. Rbb3 {[%clk 0:00:23.6]} 35... Re8 {[%clk
0:00:41.5]} 36. Kg3 {[%clk 0:00:23.6]} 36... Re7 {[%clk 0:00:41.1]} 37. f3
{[%clk 0:00:23.9]} 37... Red7 {[%clk 0:00:41]} 38. Rbc3 {[%clk 0:00:21.5]} 38...
f5 {[%clk 0:00:40.2]} 39. exf5+ {[%clk 0:00:20.6]} 39... gxf5 {[%clk 0:00:41.1]}
40. Re2 {[%clk 0:00:16]} 40... Bb5 {[%clk 0:00:36.7]} 41. Rb2 {[%clk 0:00:15.9]}
41... f4+ {[%clk 0:00:32.8]} 42. Kh2 {[%clk 0:00:16.2]} 42... Rf1 {[%clk
0:00:29.3]} 43. h5 {[%clk 0:00:14.5]} 43... Rdd1 {[%clk 0:00:27.5]} 44. Kh3
{[%clk 0:00:14.9]} 44... Rh1+ {[%clk 0:00:23.4]} 45. Kg4 {[%clk 0:00:14.9]}
45... Rd7 {[%clk 0:00:17.1]} 46. Kg5 {[%clk 0:00:12.7]} 46... Rf7 {[%clk
0:00:12.9]} 47. Bd8 {[%clk 0:00:10.6]} 47... Rf5+ {[%clk 0:00:10.7]} 48. Kg4
{[%clk 0:00:07.3]} 48... Rfxh5 {[%clk 0:00:07.8]} 49. Rd2 {[%clk 0:00:05.6]}
49... Kf7 {[%clk 0:00:05.6]} 50. Rd6 {[%clk 0:00:04]} 50... Ke8 {[%clk
0:00:05.1]} 51. Bg5 {[%clk 0:00:03.2]} 51... Bd7+ {[%clk 0:00:04.6]} 52. Rxd7
{[%clk 0:00:03]} 52... Kxd7 {[%clk 0:00:05.5]} 53. Rd3+ {[%clk 0:00:02.8]} 53...
Kc6 {[%clk 0:00:05.9]} 54. Rd6+ {[%clk 0:00:02]} 54... Kxc5 {[%clk 0:00:06.2]}
55. Rb6 {[%clk 0:00:02.2]} 55... R5h2 {[%clk 0:00:05.7]} 56. Rxb7 {[%clk
0:00:01.8]} 56... Rxg2+ {[%clk 0:00:05.9]} 57. Kf5 {[%clk 0:00:02.7]} 57... Rh5
{[%clk 0:00:06.1]} 58. Rc7+ {[%clk 0:00:01.9]} 58... Kb5 {[%clk 0:00:06.4]} 59.
Rg7 {[%clk 0:00:02.8]} 0-1

[Event "*** Titled Tuesday Blitz"]
[Site "Chess.com"]
[Date "2020.03.03"]
[Round "2"]
[White "Bryakin_Mikhail"]
[Black "gena217"]
[Result "1-0"]
[WhiteElo "2666"]
[BlackElo "3010"]
[TimeControl "180+1"]
[EndTime "13:21:01 PST"]
[Termination "Bryakin_Mikhail won by checkmate"]

1. d4 {[%clk 0:03:00.9]} 1... Nf6 {[%clk 0:02:58.8]} 2. c4 {[%clk 0:02:44.1]}
2... e6 {[%clk 0:02:57.8]} 3. Nf3 {[%clk 0:02:41.4]} 3... d5 {[%clk 0:02:54.6]}
4. g3 {[%clk 0:02:39.3]} 4... Be7 {[%clk 0:02:50.6]} 5. Bg2 {[%clk 0:02:39.7]}
5... O-O {[%clk 0:02:50.1]} 6. O-O {[%clk 0:02:40.3]} 6... dxc4 {[%clk
0:02:49.6]} 7. Qc2 {[%clk 0:02:40.9]} 7... a6 {[%clk 0:02:49.1]} 8. a4 {[%clk
0:02:41]} 8... Bd7 {[%clk 0:02:48.5]} 9. Qxc4 {[%clk 0:02:41.5]} 9... Bc6 {[%clk
0:02:48.5]} 10. Bg5 {[%clk 0:02:42]} 10... Bd5 {[%clk 0:02:45.9]} 11. Qc2 {[%clk
0:02:41.6]} 11... Be4 {[%clk 0:02:44]} 12. Qc1 {[%clk 0:02:42]} 12... Nc6 {[%clk
0:02:34.3]} 13. Rd1 {[%clk 0:02:26.7]} 13... Bxf3 {[%clk 0:02:28]} 14. Bxf3
{[%clk 0:02:25.7]} 14... Nxd4 {[%clk 0:02:27.1]} 15. Nc3 {[%clk 0:01:46.3]}
15... Nxf3+ {[%clk 0:02:25.9]} 16. exf3 {[%clk 0:01:47.2]} 16... Qc8 {[%clk
0:02:04.8]} 17. Ne4 {[%clk 0:01:47]} 17... Nxe4 {[%clk 0:01:58.4]} 18. Bxe7
{[%clk 0:01:41.5]} 18... Re8 {[%clk 0:01:58.6]} 19. fxe4 {[%clk 0:01:40]} 19...
Rxe7 {[%clk 0:01:58.5]} 20. Qc5 {[%clk 0:01:33.1]} 20... Rd7 {[%clk 0:01:56.7]}
21. a5 {[%clk 0:01:25.4]} 21... Qe8 {[%clk 0:01:54.5]} 22. Rxd7 {[%clk
0:01:19.3]} 22... Qxd7 {[%clk 0:01:55.4]} 23. Rc1 {[%clk 0:01:19.7]} 23... c6
{[%clk 0:01:54.4]} 24. Rc3 {[%clk 0:01:19]} 24... Rd8 {[%clk 0:01:52.7]} 25. Kg2
{[%clk 0:01:19.3]} 25... h6 {[%clk 0:01:48.7]} 26. h4 {[%clk 0:01:17.9]} 26...
Qd1 {[%clk 0:01:41.2]} 27. Rc1 {[%clk 0:00:59.5]} 27... Qd3 {[%clk 0:01:38.8]}
28. Qc4 {[%clk 0:00:53.4]} 28... e5 {[%clk 0:01:37.3]} 29. Rc3 {[%clk
0:00:47.4]} 29... Qd4 {[%clk 0:01:16.5]} 30. b3 {[%clk 0:00:38.8]} 30... Rd7
{[%clk 0:01:12.2]} 31. Kf3 {[%clk 0:00:32.8]} 31... Qd1+ {[%clk 0:01:05]} 32.
Kg2 {[%clk 0:00:32.6]} 32... g6 {[%clk 0:01:03.9]} 33. Rf3 {[%clk 0:00:27.9]}
33... Qd4 {[%clk 0:00:58.3]} 34. Qc2 {[%clk 0:00:28]} 34... Kg7 {[%clk 0:00:55]}
35. h5 {[%clk 0:00:28]} 35... gxh5 {[%clk 0:00:45.8]} 36. Rf5 {[%clk 0:00:28]}
36... Qd3 {[%clk 0:00:37]} 37. Qxd3 {[%clk 0:00:26.2]} 37... Rxd3 {[%clk
0:00:36.6]} 38. Rxe5 {[%clk 0:00:26.4]} 38... Kg6 {[%clk 0:00:24.8]} 39. f4
{[%clk 0:00:24.7]} 39... Rxb3 {[%clk 0:00:24.9]} 40. Re7 {[%clk 0:00:24.8]}
40... Rb5 {[%clk 0:00:19.2]} 41. Rc7 {[%clk 0:00:24.9]} 41... Kf6 {[%clk
0:00:16.5]} 42. Kf3 {[%clk 0:00:25.4]} 42... Rb3+ {[%clk 0:00:16]} 43. Kg2
{[%clk 0:00:25.6]} 43... Ke6 {[%clk 0:00:16.3]} 44. Kf2 {[%clk 0:00:25.9]} 44...
Rb4 {[%clk 0:00:15.1]} 45. Kf3 {[%clk 0:00:25.9]} 45... Rb3+ {[%clk 0:00:15.6]}
46. Kf2 {[%clk 0:00:26.4]} 46... f6 {[%clk 0:00:15.3]} 47. Rh7 {[%clk
0:00:26.1]} 47... Rb2+ {[%clk 0:00:13.4]} 48. Kf3 {[%clk 0:00:26.1]} 48... Rb3+
{[%clk 0:00:13.8]} 49. Kf2 {[%clk 0:00:26.6]} 49... c5 {[%clk 0:00:11.5]} 50.
Rc7 {[%clk 0:00:25.7]} 50... Rb5 {[%clk 0:00:10.1]} 51. Kf3 {[%clk 0:00:25.1]}
51... Rxa5 {[%clk 0:00:10.2]} 52. Rxb7 {[%clk 0:00:25.1]} 52... Ra3+ {[%clk
0:00:10.9]} 53. Kf2 {[%clk 0:00:25.4]} 53... a5 {[%clk 0:00:11.3]} 54. Rb6+
{[%clk 0:00:23.6]} 54... Kf7 {[%clk 0:00:11.5]} 55. Rc6 {[%clk 0:00:22.6]} 55...
Rc3 {[%clk 0:00:09.5]} 56. Ra6 {[%clk 0:00:23]} 56... Ra3 {[%clk 0:00:08.9]} 57.
Rc6 {[%clk 0:00:23.1]} 57... a4 {[%clk 0:00:08]} 58. Rxc5 {[%clk 0:00:22.8]}
58... Kg6 {[%clk 0:00:08.6]} 59. Ra5 {[%clk 0:00:21.1]} 59... Ra2+ {[%clk
0:00:08]} 60. Kf3 {[%clk 0:00:21.1]} 60... a3 {[%clk 0:00:08.6]} 61. Ra6 {[%clk
0:00:21.3]} 61... Kg7 {[%clk 0:00:07.5]} 62. Ra7+ {[%clk 0:00:20.9]} 62... Kg6
{[%clk 0:00:08]} 63. Ra6 {[%clk 0:00:20.8]} 63... Kf7 {[%clk 0:00:08.6]} 64.
Ra7+ {[%clk 0:00:20.7]} 64... Kg6 {[%clk 0:00:09.1]} 65. f5+ {[%clk 0:00:17.9]}
65... Kg5 {[%clk 0:00:09.5]} 66. Rg7# {[%clk 0:00:18.4]} 1-0